bitfinex/quotes_ETHUSD_20250519
["timestamp","ask_amount","ask_price","bid_price","bid_amount"]
[1747658058122,13.49491391,2399.8,2399.4,0.15027657]
[1747658058123,4.1675349,2399.5,2399.4,0.15027657]
[1747658060567,4.1675349,2399.5,2399.2,0.20037398]
[1747658060568,4.16788229,2399.3,2399.2,0.15027657]
[1747658060728,20.97088229,2399.3,2399.2,0.15027657]
[1747658061172,24.31364509,2399.3,2399.2,0.15027657]
[1747658061375,42.31164509,2399.3,2399.2,0.15027657]
[1747658061877,42.63031541,2399.3,2399.2,0.15027657]
[1747658062055,50.63031541,2399.3,2399.2,0.15027657]
[1747658062982,4.16927246,2398.5,2398.4,0.15027657]
[1747658063263,12.56927246,2398.5,2398.4,0.15027657]
[1747658066862,12.57027246,2398.5,2398.1,0.1]
[1747658067189,0.8271,2398.3,2398.1,0.1]
[1747658067331,23.39976225,2398.2,2398.1,0.1]
[1747658067530,23.35854836,2398.2,2398.1,0.1]
[1747658068372,12.94374178,2398.0,2397.9,0.15027657]
[1747658068671,26.41491489,2398.0,2397.9,0.15027657]
[1747658068861,43.21991489,2398.0,2397.9,0.15027657]
[1747658069881,4.17153345,2397.2,2397.1,0.1]
[1747658070173,20.98053345,2397.2,2397.1,0.1]
[1747658071344,8.403,2397.2,2397.1,0.9303]
[1747658071590,8.403,2397.2,2397.1,1.82333]
[1747658072280,12.57453345,2397.2,2397.1,0.1]
[1747658074075,8.403,2397.2,2397.1,0.1]
[1747658074277,12.57453345,2397.2,2397.1,0.1]
[1747658075078,20.98453345,2397.2,2397.1,0.1]
[1747658075690,21.76583345,2397.2,2397.1,0.1]
[1747658075884,24.3595538,2397.2,2397.1,0.1]
[1747658076087,34.49140981,2397.2,2397.1,0.1]
[1747658077808,43.06100981,2397.2,2397.1,0.1]
[1747658085841,43.06300981,2397.2,2397.1,0.1]
[1747658087023,46.73933804,2397.2,2397.1,0.1]
[1747658088225,34.65700981,2397.2,2397.1,0.1]
[1747658088428,14.30338946,2397.2,2397.1,0.1]
[1747658088627,31.11638946,2397.2,2397.1,0.1]
[1747658089941,30.7961878,2397.2,2397.1,0.1]
[1747658090941,20.98453345,2397.2,2397.1,0.8649]
[1747658093356,16.813,2397.2,2397.1,0.8649]
[1747658093531,27.83165435,2397.6,2397.1,5.03651526]
[1747658093852,4.17153345,2397.2,2397.1,0.8649]
[1747658094224,4.17153345,2397.2,2397.1,0.1]
[1747658095537,4.21274734,2397.2,2397.1,0.1]
[1747658095717,4.17153345,2397.2,2397.1,0.1]
[1747658098275,4.21274734,2397.2,2397.1,0.1]
[1747658098493,6.30889348,2397.2,2397.1,0.1]
[1747658098684,7.07169348,2397.2,2397.1,0.1]
[1747658098985,4.17153345,2397.2,2397.1,0.1]
[1747658099187,4.21274734,2397.2,2397.1,0.1]
[1747658099980,14.02440169,2397.2,2397.1,0.1]
[1747658100183,13.9831878,2397.2,2397.1,0.1]
[1747658100503,22.3861878,2397.2,2397.1,0.9331]
[1747658100685,22.3861878,2397.2,2397.1,0.1]
[1747658100891,25.88254528,2397.2,2397.1,0.1]
[1747658101500,25.88254528,2397.2,2397.1,0.23347043]
[1747658101715,25.88254528,2397.2,2397.1,0.22935057]
[1747658101716,22.3861878,2397.2,2397.1,0.22935057]
[1747658102481,4.17138702,2397.3,2397.1,0.22935057]
[1747658102482,4.17146591,2397.3,2397.1,0.22935057]
[1747658102808,12.57335944,2397.3,2397.2,0.8331]
[1747658103102,8.402,2397.3,2397.2,0.8331]
[1747658103803,22.1908849,2397.6,2397.2,0.8331]
[1747658103980,4.17104284,2397.5,2397.2,9.73934506]
[1747658104302,38.99896218,2397.6,2397.2,9.73934506]
[1747658104504,4.17135944,2397.3,2397.2,9.73934506]
[1747658104807,4.17128899,2397.4,2397.2,9.73934506]
[1747658104965,4.17135944,2397.3,2397.2,9.73934506]
[1747658105168,4.17109507,2397.5,2397.2,9.73934506]
[1747658105404,4.17101809,2397.5,2397.3,0.13347043]
[1747658105625,8.406,2397.6,2397.4,8.81]
[1747658105786,8.401,2397.8,2397.6,0.81]
[1747658106119,8.401,2397.8,2397.6,8.81]
[1747658106414,8.401,2397.8,2397.7,0.283747]
[1747658106582,13.82863114,2397.8,2397.7,0.283747]
[1747658107621,13.82863114,2397.8,2397.7,0.15027657]
[1747658109528,20.97429778,2398.0,2397.8,0.81]
[1747658109742,18.017,2398.3,2397.8,0.81]
[1747658109906,16.804,2398.4,2398.1,0.81]
[1747658110228,4.16962148,2398.3,2398.1,0.81]
[1747658110534,4.16963205,2398.3,2398.1,0.81]
[1747658110739,16.804,2398.4,2398.1,0.81]
[1747658110947,20.97352428,2398.4,2398.1,0.81]
[1747658111153,4.16975612,2398.3,2398.1,0.81]
[1747658111321,4.16975612,2398.3,2398.2,0.13338046]
[1747658112525,4.17014178,2398.0,2397.9,0.81]
[1747658114054,5.04949061,2398.0,2397.9,0.1334056]
[1747658114208,5.00827672,2398.0,2397.9,0.1334056]
[1747658114413,4.17014178,2398.0,2397.9,0.1334056]
[1747658114620,16.804,2398.4,2397.9,0.1334056]
[1747658114845,4.16953817,2398.4,2398.0,0.7714]
[1747658115046,4.16953817,2398.4,2398.1,3.67139208]
[1747658115047,8.403,2398.3,2398.1,3.67139208]
[1747658115236,12.56524847,2398.6,2398.3,0.774]
[1747658115551,4.16927624,2398.5,2398.3,0.774]
[1747658115735,4.16944629,2398.4,2398.3,0.774]
[1747658116252,4.16928224,2398.5,2397.9,8.8318]
[1747658116468,4.17014178,2398.0,2397.9,0.8318]
[1747658116676,4.17014178,2398.0,2397.6,0.15027657]
[1747658116958,12.97686355,2397.7,2397.6,0.15027657]
[1747658117174,25.85875604,2397.7,2397.6,0.15027657]
[1747658117322,29.53014812,2397.7,2397.6,0.15027657]
[1747658117723,4.17153345,2397.2,2397.1,0.09588014]
[1747658117940,21.72453345,2397.2,2397.1,0.09588014]
[1747658118926,22.02946283,2397.2,2397.1,0.09588014]
[1747658119123,4.17153345,2397.2,2397.1,0.09588014]
[1747658119470,20.96153345,2397.2,2397.1,0.09588014]
[1747658120654,4.17153345,2397.2,2397.1,0.09588014]
[1747658121046,20.96353345,2397.2,2397.1,0.09588014]
[1747658122353,21.73373345,2397.2,2397.1,0.09588014]
[1747658122527,24.32424613,2397.2,2397.1,0.09588014]
[1747658122738,4.17153345,2397.2,2397.1,0.09588014]
[1747658123087,20.96353345,2397.2,2397.1,0.92398014]
[1747658123287,20.96353345,2397.2,2397.1,0.09588014]
[1747658126691,21.76413345,2397.2,2397.1,0.09588014]
[1747658130299,4.17153345,2397.2,2397.1,0.09588014]
[1747658130481,8.398,2397.3,2397.1,0.09588014]
[1747658130697,4.17153345,2397.2,2397.1,0.09588014]
[1747658133008,8.398,2397.3,2397.1,0.09588014]
[1747658133206,12.56946683,2397.3,2397.1,0.09588014]
[1747658133410,12.56946683,2397.3,2397.2,0.00512133]
[1747658136125,4.17128115,2397.4,2397.2,0.00512133]
[1747658136426,12.56926813,2397.4,2397.3,0.7642]
[1747658136594,20.96626813,2397.4,2397.3,0.7642]
[1747658137730,4.17135944,2397.3,2397.2,0.00512133]
[1747658138913,20.96635944,2397.3,2397.2,0.00512133]
[1747658139114,16.795,2397.3,2397.2,0.00512133]
[1747658139332,20.96635944,2397.3,2397.2,0.00512133]
[1747658139713,16.795,2397.3,2397.2,0.00512133]
[1747658140215,8.398,2397.3,2397.2,0.00512133]
[1747658140419,20.96635944,2397.3,2397.2,0.00512133]
[1747658141341,20.95877651,2397.3,2397.2,0.00512133]
[1747658141636,9.81165435,2397.8,2397.2,3.67651341]
[1747658141808,18.017,2398.0,2397.7,3.67139208]
[1747658141809,4.17038879,2397.9,2397.7,3.67139208]
[1747658142017,4.17048961,2397.8,2397.7,0.8172]
[1747658142356,4.17135944,2397.3,2397.2,8.00512133]
[1747658142501,8.396,2397.3,2397.2,8.00512133]
[1747658142701,8.396,2397.3,2397.2,10.01506069]
[1747658142921,8.396,2397.3,2397.2,14.18659414]
[1747658143101,8.396,2397.3,2397.2,10.01506069]
[1747658143725,8.396,2397.3,2397.2,10.14849038]
[1747658144263,12.56735944,2397.3,2397.2,8.97125102]
[1747658144557,8.396,2397.3,2397.2,0.97125102]
[1747658144718,12.56735944,2397.3,2397.2,0.13855102]
[1747658144902,20.96435944,2397.3,2397.2,0.13855102]
[1747658145103,20.96435944,2397.3,2397.2,0.00512133]
[1747658145299,23.55457253,2397.3,2397.2,0.00512133]
[1747658147307,20.96435944,2397.3,2397.2,0.00512133]
[1747658148134,4.17135944,2397.3,2397.2,0.00512133]
[1747658148345,12.56735944,2397.3,2397.2,0.00512133]
[1747658148655,12.56735944,2397.3,2397.2,0.13858316]
[1747658149019,8.396,2397.3,2397.2,0.95158316]
[1747658149329,8.396,2397.3,2397.2,1.4234687]
[1747658149330,8.39002711,2397.3,2397.2,1.4234687]
[1747658149701,8.396,2397.6,2397.3,4.17124776]
[1747658149908,8.396,2397.6,2397.3,7.84263984]
[1747658150220,4.17027303,2398.0,2397.5,8.8063]
[1747658150432,8.396,2398.0,2397.6,1.30190973]
[1747658150634,4.17081116,2397.7,2397.5,0.8063]
[1747658150838,0.7733,2397.9,2397.3,0.7953]
[1747658151034,4.17066355,2397.7,2397.6,0.13346183]
[1747658152518,4.17135944,2397.3,2397.2,0.00512133]
[1747658152716,12.56735944,2397.3,2397.2,0.00512133]
[1747658153127,8.396,2397.3,2397.2,0.00512133]
[1747658153652,8.396,2397.3,2397.2,0.13855988]
[1747658153855,12.56735944,2397.3,2397.2,0.13855988]
[1747658154039,15.06355558,2397.3,2397.2,0.13855988]
[1747658154415,15.86685558,2397.3,2397.2,0.13855988]
[1747658155019,15.86685558,2397.3,2397.2,0.00512133]
[1747658158867,13.37065944,2397.3,2397.2,0.00512133]
[1747658159047,4.17135944,2397.3,2397.2,0.00512133]
[1747658159243,12.56935944,2397.3,2397.2,0.00512133]
[1747658160535,13.39585944,2397.3,2397.2,0.00512133]
[1747658160995,23.75751379,2397.3,2397.2,0.00512133]
[1747658161180,27.38999935,2397.3,2397.2,0.00512133]
[1747658161585,39.06139143,2397.3,2397.2,0.00512133]
[1747658162412,43.45239143,2397.3,2397.2,0.00512133]
[1747658162572,17.90983345,2397.2,2397.1,0.09588014]
[1747658162886,18.12397254,2397.2,2397.1,0.09588014]
[1747658163094,22.22216524,2397.2,2397.1,0.09588014]
[1747658163308,22.22216524,2397.2,2396.1,0.1]
[1747658163309,4.17327435,2396.2,2396.1,0.1]
[1747658163517,49.55194856,2396.2,2396.1,0.1]
[1747658163813,50.10194856,2396.2,2396.1,0.1]
[1747658164011,58.41152389,2396.2,2396.1,0.1]
[1747658164214,62.50971659,2396.2,2396.1,0.1]
[1747658164819,62.50971659,2396.2,2396.0,0.15027657]
[1747658164820,17.89444852,2396.1,2396.0,0.15027657]
[1747658165016,21.5658406,2396.1,2396.0,0.15027657]
[1747658165174,17.16680537,2396.1,2396.0,0.15027657]
[1747658165380,8.0,2395.8,2394.7,0.7715]
[1747658165730,4.1750167,2395.2,2394.7,0.7715]
[1747658165880,21.0270167,2395.2,2394.7,8.7715]
[1747658166081,16.852,2395.2,2394.8,3.713149]
[1747658166280,9.71577421,2395.4,2394.9,8.0]
[1747658166281,4.17490183,2395.3,2394.9,8.0]
[1747658166515,13.89046216,2395.4,2395.2,0.8001]
[1747658166731,21.02284239,2395.3,2395.2,0.8001]
[1747658166882,16.848,2395.3,2395.2,0.8001]
[1747658168477,4.1745155,2395.5,2395.2,0.8001]
[1747658168679,16.843,2395.4,2395.2,0.8001]
[1747658169578,31.83196691,2396.2,2395.2,0.8001]
[1747658169781,4.1736227,2396.0,2395.2,0.8193]
[1747658170024,4.1747514,2395.4,2395.2,0.8193]
[1747658170522,4.1747514,2395.4,2395.1,0.1]
[1747658170523,4.1750167,2395.2,2395.1,0.1]
[1747658174026,4.1750167,2395.2,2395.1,0.8789]
[1747658174197,16.834,2395.2,2395.1,0.8789]
[1747658174392,10.54237421,2395.9,2395.1,0.8789]
[1747658174599,12.57502375,2395.8,2395.3,3.67139208]
[1747658174831,12.57502375,2395.8,2395.5,0.7638]
[1747658174832,8.401,2395.8,2395.5,0.7638]
[1747658175129,4.17414663,2395.7,2395.5,0.7638]
[1747658176094,8.401,2395.8,2395.2,0.8299]
[1747658176298,8.401,2395.8,2395.3,3.67139208]
[1747658176299,4.17427245,2395.7,2395.3,3.67139208]
[1747658176499,4.17461374,2395.5,2395.3,8.0]
[1747658176806,4.17414534,2395.7,2395.2,0.8299]
[1747658176995,4.17484239,2395.3,2395.2,0.8299]
[1747658177430,4.17473973,2395.4,2395.2,0.8299]
[1747658177737,4.17462941,2395.5,2395.2,0.8299]
[1747658177920,4.17468906,2395.4,2395.2,4.50129208]
[1747658178246,4.17484239,2395.3,2395.2,0.8299]
[1747658178651,4.1750167,2395.2,2395.1,0.1]
[1747658179255,8.454,2395.3,2395.1,0.1]
[1747658179415,12.62885838,2395.3,2395.1,0.55232921]
[1747658179600,12.62885838,2395.3,2395.1,0.1]
[1747658180339,4.1750167,2395.2,2395.1,0.1]
[1747658181143,4.17031664,2395.2,2395.1,0.1]
[1747658183901,12.6288562,2395.3,2395.1,0.1]
[1747658184106,8.454,2395.3,2395.1,0.1]
[1747658184336,8.459,2395.2,2395.1,0.1]
[1747658184498,8.459,2395.2,2395.1,4.52249208]
[1747658185208,8.459,2395.2,2395.1,16.69768309]
[1747658185401,8.459,2395.2,2395.1,12.52249208]
[1747658185651,0.8221,2395.8,2395.1,12.65603725]
[1747658185856,4.17448928,2395.6,2395.1,12.65603725]
[1747658186039,0.8217,2396.1,2395.1,12.65603725]
[1747658186040,4.17476568,2395.4,2395.1,12.65603725]
[1747658186251,4.17439297,2395.6,2395.2,4.30855931]
[1747658186555,12.62049418,2395.5,2395.2,0.13354517]
[1747658187143,8.446,2395.5,2395.2,4.30852561]
[1747658187355,8.446,2395.5,2395.4,4.44839208]
[1747658187642,8.446,2395.5,2395.4,16.62306019]
[1747658187850,8.446,2395.5,2395.4,16.75660536]
[1747658188021,12.62879066,2396.0,2395.6,8.0]
[1747658188355,12.61198441,2395.8,2395.5,8.0]
[1747658188938,12.60448353,2395.8,2395.6,0.13354517]
[1747658189121,4.17414534,2395.7,2395.6,0.13354517]
[1747658189326,12.6040482,2395.8,2395.6,0.13354517]
[1747658189547,8.43,2395.8,2395.6,0.13354517]
[1747658189842,8.43,2395.8,2395.7,0.13354517]
[1747658190862,12.60397111,2395.8,2395.7,0.13354517]
[1747658191068,15.12725649,2395.8,2395.7,0.13354517]
[1747658191523,12.60997111,2395.8,2395.7,0.13354517]
[1747658193061,12.60997111,2395.8,2395.5,8.0]
[1747658193552,8.436,2395.8,2395.7,3.67139208]
[1747658194331,8.454,2395.9,2395.7,3.67139208]
[1747658194544,26.44,2396.2,2395.9,4.17363264]
[1747658194869,8.422,2396.2,2396.0,3.67139208]
[1747658195423,8.422,2396.2,2396.0,7.84499626]
[1747658195637,8.422,2396.2,2396.1,4.98244852]
[1747658195838,8.422,2396.2,2396.1,12.98244852]
[1747658196157,12.58874235,2396.6,2396.2,8.0]
[1747658196333,12.58874235,2396.6,2396.3,4.21156468]
[1747658196952,8.4095388,2396.6,2396.3,8.38458233]
[1747658197157,8.454,2397.1,2396.6,4.17248397]
[1747658197338,8.454,2397.1,2396.7,4.98687434]
[1747658197662,12.62578868,2397.1,2396.7,8.8145]
[1747658197965,4.17207729,2396.9,2396.7,8.8145]
[1747658198169,4.17197131,2397.0,2396.7,8.8145]
[1747658198375,4.17207851,2396.9,2396.7,8.8145]
[1747658198806,4.17222963,2396.8,2396.7,8.8145]
[1747658198943,4.17222963,2396.8,2396.7,8.0]
[1747658199273,4.17257781,2396.6,2396.5,0.20012377]
[1747658200347,4.17257781,2396.6,2396.5,0.33359702]
[1747658201687,12.62457781,2396.6,2396.5,0.33359702]
[1747658202462,4.17338322,2396.2,2395.9,3.67139208]
[1747658203688,4.17338322,2396.2,2396.0,0.13349601]
[1747658204253,4.17317759,2396.3,2396.0,0.13349601]
[1747658204590,8.452,2396.6,2396.3,0.755]
[1747658204955,12.62461811,2396.6,2396.3,0.755]
[1747658205151,8.452,2396.6,2396.3,4.92802855]
[1747658205484,12.62457781,2396.6,2396.5,3.67139208]
[1747658205693,12.62457781,2396.6,2396.0,0.14965754]
[1747658205694,4.17292605,2396.4,2396.0,0.14965754]
[1747658205899,4.99534852,2396.1,2396.0,0.14965754]
[1747658206055,22.02456241,2396.1,2396.0,0.14965754]
[1747658206398,29.98334852,2396.1,2396.0,0.14965754]
[1747658207392,21.98334852,2396.1,2396.0,0.14965754]
[1747658207615,4.99534852,2396.1,2396.0,0.14965754]
[1747658207767,4.17456547,2395.5,2395.1,8.1]
[1747658208092,8.534,2395.4,2395.2,0.34852313]
[1747658210167,4.17484239,2395.3,2395.2,0.34852313]
[1747658210996,8.452,2395.5,2395.4,8.0]
[1747658211199,12.68398079,2395.8,2395.4,8.0]
[1747658211508,12.68401018,2395.8,2395.5,0.13352509]
[1747658211683,4.17432535,2395.6,2395.5,0.13352509]
[1747658212112,4.17424573,2395.7,2395.5,0.13352509]
[1747658212312,4.17431958,2395.6,2395.5,0.13352509]
[1747658212620,8.51,2395.8,2395.5,0.13352509]
[1747658212621,12.68403258,2395.8,2395.5,0.13352509]
[1747658212909,12.6760236,2395.8,2395.5,0.13352509]
[1747658213114,8.50194076,2395.8,2395.5,0.13352509]
[1747658213283,12.67592383,2395.8,2395.5,0.13352509]
[1747658213483,8.493,2396.3,2395.6,8.7645]
[1747658213801,8.493,2396.3,2395.8,7.8453322]
[1747658213971,8.493,2396.3,2395.9,8.7623]
[1747658214172,8.493,2396.3,2396.0,4.17357752]
[1747658214547,8.533,2396.4,2396.1,15.84469235]
[1747658214676,8.533,2396.4,2396.2,0.51184921]
[1747658215370,12.70600598,2396.4,2396.1,8.0]
[1747658215568,12.70600598,2396.4,2396.3,0.13352509]
[1747658215824,13.53750598,2396.4,2396.3,0.13352509]
[1747658216465,4.17344852,2396.1,2396.0,0.14965754]
[1747658218322,5.00812472,2396.1,2396.0,0.14965754]
[1747658218666,4.1736227,2396.0,2395.9,0.13351366]
[1747658218920,12.6906227,2396.0,2395.9,0.13351366]
[1747658219881,8.517,2396.0,2395.9,0.13351366]
[1747658220085,4.17379842,2395.9,2395.7,0.18899895]
[1747658220302,4.1737969,2395.9,2395.7,0.18899895]
[1747658220698,4.16537552,2395.8,2395.7,0.18899895]
[1747658221508,4.16537552,2395.8,2395.7,0.32251707]
[1747658221707,4.17387774,2395.9,2395.7,0.32251707]
[1747658221924,8.517,2396.0,2395.7,0.32251707]
[1747658222143,8.502,2396.1,2395.8,0.8074]
[1747658222633,8.502,2396.1,2395.9,8.13351812]
[1747658223402,4.17329021,2396.2,2395.9,8.13351812]
[1747658223632,8.497,2396.3,2395.9,4.30729642]
[1747658223933,12.67017889,2396.3,2395.9,0.13351812]
[1747658224135,4.17344073,2396.2,2395.9,0.13351812]
[1747658224337,4.1735037,2396.1,2395.9,0.13351812]
[1747658224577,18.7775,2396.7,2395.9,1.50670383]
[1747658224854,4.17258124,2396.6,2396.4,0.7959]
[1747658225002,4.17293025,2396.4,2396.0,12.30703231]
[1747658225203,4.17320223,2396.3,2396.1,0.7959]
[1747658225399,4.17327435,2396.2,2396.0,0.13351812]
[1747658225601,4.17344852,2396.1,2396.0,0.13351812]
[1747658225802,4.17337381,2396.2,2396.0,0.13351812]
[1747658226019,4.17337381,2396.2,2396.1,0.13351812]
[1747658226219,8.523,2396.3,2396.1,0.13351812]
[1747658226420,8.52,2396.7,2396.3,4.17310019]
[1747658226638,8.52,2396.7,2396.3,4.72298949]
[1747658226869,8.52,2396.7,2396.4,4.17285725]
[1747658227166,8.52,2396.7,2396.4,12.1728511]
[1747658227662,8.52,2396.7,2396.5,0.13351812]
[1747658227871,12.69240518,2396.7,2396.5,0.64983627]
[1747658228082,4.17257781,2396.6,2396.5,0.13351812]
[1747658228876,4.17292605,2396.4,2396.3,0.14965754]
[1747658229048,4.21413994,2396.4,2396.3,0.14965754]
[1747658229929,4.17292605,2396.4,2396.3,0.14965754]
[1747658230144,4.17259246,2396.6,2396.3,0.14965754]
[1747658230324,4.17292605,2396.4,2396.3,0.60195318]
[1747658230676,4.17257781,2396.6,2396.3,0.14965754]
[1747658230821,8.531,2396.8,2396.4,0.812]
[1747658231024,0.8233,2396.5,2396.3,0.13348578]
[1747658231223,12.82313994,2396.4,2396.3,0.13348578]
[1747658231422,14.56382783,2396.4,2396.3,0.13348578]
[1747658231623,15.33732783,2396.4,2396.3,0.13348578]
[1747658231840,23.33732783,2396.4,2396.3,0.13348578]
[1747658232361,4.17327435,2396.2,2396.1,0.14965754]
[1747658232527,4.21448824,2396.2,2396.1,0.14965754]
[1747658233353,4.1737969,2395.9,2395.8,0.13352232]
[1747658233676,17.126,2395.9,2395.8,0.13352232]
[1747658234154,8.531,2395.9,2395.8,0.13352232]
[1747658234357,17.122,2395.9,2395.8,0.13352232]
[1747658234767,8.531,2395.9,2395.8,0.58318687]
[1747658235742,12.7047969,2395.9,2395.8,0.58318687]
[1747658235937,8.531,2395.9,2395.8,0.13352232]
[1747658236653,8.52576459,2395.9,2395.8,0.13352232]
[1747658237377,13.52216149,2395.9,2395.8,0.13352232]
[1747658237664,4.17397111,2395.8,2395.7,0.18899895]
[1747658237870,5.98476412,2395.8,2395.7,0.18899895]
[1747658238070,5.94355023,2395.8,2395.7,0.18899895]
[1747658238559,15.70053833,2395.8,2395.7,0.18899895]
[1747658238727,16.44042444,2395.8,2395.7,0.18899895]
[1747658240631,13.88974532,2395.8,2395.7,0.18899895]
[1747658240863,22.45874532,2395.8,2395.7,0.18899895]
[1747658241241,18.28477421,2395.8,2395.7,0.18899895]
[1747658241447,22.45874532,2395.8,2395.7,0.18899895]
[1747658242373,22.45874532,2395.8,2395.7,0.32252966]
[1747658242374,23.22284532,2395.8,2395.7,0.32252966]
[1747658242532,26.82041673,2395.8,2395.7,0.32252966]
[1747658242940,26.82041673,2395.8,2395.7,0.18899895]
[1747658243676,26.82041673,2395.8,2394.1,0.1]
[1747658243677,12.7260628,2394.6,2394.1,0.1]
[1747658243872,4.9395605,2394.2,2394.1,0.1]
[1747658244079,12.98077439,2394.2,2394.1,0.1]
[1747658244272,15.02309355,2394.2,2394.1,0.1]
[1747658244570,15.01654929,2394.2,2394.1,0.1]
[1747658244777,15.32788835,2394.2,2394.1,0.1]
[1747658247684,15.32788835,2394.2,2392.1,0.1]
[1747658247685,4.18025248,2392.2,2392.1,0.1]
[1747658247841,23.12527773,2392.2,2392.1,0.1]
[1747658248185,18.527,2392.2,2392.1,0.1]
[1747658248379,4.17854086,2393.2,2392.1,0.1]
[1747658248380,18.032,2393.3,2392.2,0.7886]
[1747658248598,9.281,2392.9,2392.2,0.7886]
[1747658248734,9.281,2392.9,2392.5,4.17966774]
[1747658248936,9.281,2392.9,2392.3,4.18000402]
[1747658249164,9.313,2392.8,2392.4,0.4968604]
[1747658249362,9.313,2392.8,2392.4,4.67672966]
[1747658249876,9.313,2392.8,2392.4,8.4968604]
[1747658250080,4.17886961,2393.0,2392.5,0.55]
[1747658250778,9.3,2393.2,2392.5,0.55]
[1747658251072,4.17869839,2393.1,2392.6,8.0]
[1747658251275,9.3,2393.2,2392.6,13.50207237]
[1747658251455,4.17874171,2393.1,2392.7,0.7635]
[1747658252302,13.47855284,2393.2,2392.7,0.7635]
[1747658252482,13.47213366,2393.2,2392.7,0.7635]
[1747658252676,9.29358082,2393.2,2392.7,0.7635]
[1747658252853,9.29358082,2393.2,2392.8,0.50020959]
[1747658253048,9.29358082,2393.2,2392.9,8.0]
[1747658253249,9.29358082,2393.2,2393.0,4.17884395]
[1747658253751,27.297,2393.5,2393.0,12.72885499]
[1747658254077,9.265,2393.5,2393.1,4.17861335]
[1747658254240,9.265,2393.5,2393.0,12.72878494]
[1747658254441,9.265,2393.5,2393.0,14.05143647]
[1747658254679,13.4429998,2393.5,2393.0,14.05143647]
[1747658254979,13.4430034,2393.5,2393.0,14.05143647]
[1747658255538,4.17819393,2393.4,2393.0,9.87265153]
[1747658255741,9.265,2393.5,2393.0,1.87265153]
[1747658256090,13.4431352,2393.5,2393.0,4.72883133]
[1747658256418,4.17730933,2393.9,2392.4,0.8231]
[1747658256419,4.17916179,2392.9,2392.4,0.8231]
[1747658256560,4.17945669,2392.7,2392.4,0.8231]
[1747658256887,22.69650576,2393.2,2392.6,8.0]
[1747658256888,4.17893607,2393.0,2392.6,8.0]
[1747658257098,4.17904769,2392.9,2392.5,8.0]
[1747658257305,0.34860682,2392.8,2392.6,4.17942765]
[1747658258063,4.17886336,2393.0,2392.5,12.17963428]
[1747658258698,9.267,2393.2,2392.5,8.0]
[1747658258889,4.17916911,2392.9,2392.5,8.0]
[1747658259757,4.17916911,2392.9,2392.4,1.32342496]
[1747658259960,4.17924613,2392.8,2392.4,0.8231]
[1747658260576,4.17916911,2392.9,2392.4,0.8231]
[1747658260577,4.17911408,2392.9,2392.5,8.0]
[1747658260980,4.17929822,2392.8,2392.4,8.8231]
[1747658261213,3.81548786,2392.8,2392.1,0.1]
[1747658261411,3.81548786,2392.8,2390.7,0.20891346]
[1747658261412,0.6529,2390.5,2388.9,4.391]
[1747658261609,4.18674299,2388.5,2388.1,0.1]
[1747658261809,0.1,2388.2,2388.1,0.1]
[1747658262203,16.25486099,2388.2,2388.1,0.1]
[1747658262410,24.25486099,2388.2,2388.1,0.1]
[1747658262742,12.28795544,2387.8,2387.7,0.77280457]
[1747658262942,4.28900804,2387.2,2387.1,0.1]
[1747658263146,15.19400804,2387.2,2387.1,0.1]
[1747658263300,4.28900804,2387.2,2387.1,0.1]
[1747658264140,4.28835858,2387.6,2387.1,10.854]
[1747658264343,4.28900804,2387.2,2387.1,0.1]
[1747658264543,0.1,2387.2,2387.1,0.1]
[1747658264838,0.1,2387.7,2387.1,0.1]
[1747658264998,0.1,2387.7,2387.3,8.0]
[1747658265202,8.0,2388.5,2385.1,0.1]
[1747658265203,40.47,2387.6,2385.1,0.1]
[1747658265543,0.30850503,2388.2,2385.1,0.1]
[1747658265544,0.1,2385.9,2385.2,0.7528]
[1747658265728,8.0,2387.0,2385.1,0.1]
[1747658265729,0.1,2385.3,2385.1,0.1]
[1747658266031,0.1,2385.9,2385.1,0.1]
[1747658266262,0.1,2386.4,2385.2,43.277]
[1747658266473,0.31906426,2386.4,2385.3,1.82286112]
[1747658266637,4.20821249,2388.5,2385.2,43.277]
[1747658266638,9.98702814,2388.8,2386.1,0.1]
[1747658266955,0.7333,2388.8,2387.5,0.7899]
[1747658267131,1.03991532,2388.8,2387.6,12.578]
[1747658267334,0.7333,2389.5,2387.7,8.0]
[1747658267538,0.1,2388.9,2387.7,8.0]
[1747658267735,0.1,2387.9,2387.8,8.0]
[1747658267935,0.1,2387.9,2387.8,54.19895544]
[1747658268125,0.1,2388.9,2387.9,8.0]
[1747658268329,0.09380797,2388.9,2388.1,8.0]
[1747658268525,0.09380797,2388.9,2387.5,0.7899]
[1747658268859,0.09380797,2388.9,2387.7,8.0]
[1747658269060,0.09380797,2388.9,2387.8,8.0]
[1747658269233,4.18722427,2388.3,2387.7,8.0]
[1747658269431,4.18758304,2388.1,2387.8,8.0]
[1747658269654,4.60582559,2388.3,2387.8,8.0]
[1747658269848,0.09380797,2388.9,2387.8,8.0]
[1747658270236,4.18703919,2388.4,2387.8,8.0]
[1747658270533,8.81051389,2388.3,2386.1,0.1]
[1747658270731,8.81051389,2388.3,2386.2,0.82230286]
[1747658270732,8.0,2388.1,2386.2,0.82230286]
[1747658271051,8.0,2388.2,2386.3,40.67]
[1747658271255,14.0243,2388.3,2386.3,44.86048267]
[1747658271453,4.18742933,2388.1,2387.0,4.18932478]
[1747658271655,0.34860682,2388.0,2387.1,12.925]
[1747658272061,0.34860682,2388.0,2387.0,18.075]
[1747658272394,0.34860682,2388.0,2387.2,8.0]
[1747658272551,0.34860682,2388.0,2387.6,4.18817671]
[1747658272865,0.34860682,2388.0,2387.7,12.925]
[1747658273458,0.34860682,2388.0,2387.7,27.425]
[1747658274166,0.34860682,2388.0,2387.7,44.77512607]
[1747658274370,0.34860682,2388.0,2387.7,40.587]
[1747658274940,0.34860682,2388.0,2387.7,44.77499786]
[1747658275268,0.34860682,2388.0,2387.7,44.77501055]
[1747658275569,0.34860682,2388.0,2387.6,8.0]
[1747658275773,0.34860682,2388.0,2387.7,12.927]
[1747658275936,0.34860682,2388.0,2387.8,12.929]
[1747658276339,0.3415042,2388.0,2387.8,17.11690379]